Workbook

Sheet Distance
A2: 0.2 | B2: 10
A4: DistanceKm | B4: DistanceKmFactor | C4: DistanceKmProbabilityReversed
A5: 1 | B5: =(A5/$B$2) -> 0.1 | C5: =(1-$A$2)*B5 -> 0.08 | D5: =1-C5 -> 0.92 | E5: =D5*100 -> 92
A6: 2 | B6: =(A6/$B$2) -> 0.2 | C6: =(1-$A$2)*B6 -> 0.16 | D6: =1-C6 -> 0.84 | E6: =D6*100 -> 84
A7: 3 | B7: 0.3 | C7: 0.24 | D7: 0.76 | E7: 76
A8: 4 | B8: 0.4 | C8: 0.32 | D8: 0.68 | E8: 68
A9: 5 | B9: 0.5 | C9: 0.4 | D9: 0.6 | E9: 60
A10: 6 | B10: 0.6 | C10: 0.48 | D10: 0.52 | E10: 52
A11: 7 | B11: 0.7 | C11: 0.56 | D11: 0.44 | E11: 44
A12: 8 | B12: 0.8 | C12: 0.64 | D12: 0.36 | E12: 36
A13: 9 | B13: 0.9 | C13: 0.72 | D13: 0.28 | E13: 28
A14: 10 | B14: 1 | C14: 0.8 | D14: 0.2 | E14: 20
A15: 11 | B15: 1.1 | C15: 0.88 | D15: 0.12 | E15: 12
A16: 12 | B16: 1.2 | C16: 0.96 | D16: 0.04 | E16: 4
A17: 13 | B17: 1.3 | C17: 1.04 | D17: -0.04 | E17: -4
A18: 14 | B18: 1.4 | C18: 1.12 | D18: -0.12 | E18: -12
A19: 15 | B19: 1.5 | C19: 1.2 | D19: -0.2 | E19: -20

Sheet Alpha Angle
A2: 0.6 | C2: 10
B4: Radians | C4: Sin | D4: Reversed | E4: Probability
A5: 0 | B5: =A5*PI()/180 -> 0 | C5: =SIN(B5) -> 0 | D5: =(1-$A$2)*(1-C5) -> 0.4 | E5: =1-D5 -> 60.00%
A6: 10 | B6: =A6*PI()/180 -> 0.1745329252 | C6: =SIN(B6) -> 0.1736481777 | D6: =(1-$A$2)*(1-C6) -> 0.3305407289 | E6: =1-D6 -> 66.95%
A7: 20 | B7: 0.3490658504 | C7: 0.3420201433 | D7: 0.2631919427 | E7: 73.68%
A8: 30 | B8: 0.5235987756 | C8: 0.5 | D8: 0.2 | E8: 80.00%
A9: 40 | B9: 0.6981317008 | C9: 0.6427876097 | D9: 0.1428849561 | E9: 85.71%
A10: 50 | B10: 0.872664626 | C10: 0.7660444431 | D10: 0.09358222275 | E10: 90.64%
A11: 60 | B11: 1.047197551 | C11: 0.8660254038 | D11: 0.05358983849 | E11: 94.64%
A12: 70 | B12: 1.221730476 | C12: 0.9396926208 | D12: 0.02412295169 | E12: 97.59%
A13: 80 | B13: 1.396263402 | C13: 0.984807753 | D13: 0.006076898795 | E13: 99.39%
A14: 90 | B14: 1.570796327 | C14: 1 | D14: 0 | E14: 100.00%

Sheet Blad3
B1: x | C1: y
A3: Detector | B3: 3 | C3: 3
A4: Target | B4: 2 | C4: 2
A6: Normalized | B6: =B3-B4 -> 1 | C6: =C3-C4 -> 1
A8: Angle | B8: =ATAN2(1,1) -> 0.7853981634 | C8: =B8*180/PI() -> 45
